bitfinex/quotes_BTCUSD_20240701
["timestamp","ask_amount","ask_price","bid_price","bid_amount"]
[1719803768297,1.89619,63520.0,63519.0,0.62641407]
[1719803768497,1.89619,63520.0,63519.0,0.64541407]
[1719803768846,1.88619,63520.0,63519.0,0.64441407]
[1719803769281,1.89519,63520.0,63519.0,0.64541407]
[1719803769859,1.89519,63520.0,63519.0,0.64641407]
[1719803769860,1.89919,63520.0,63519.0,0.64641407]
[1719803770060,1.89119,63520.0,63519.0,0.64541407]
[1719803770514,1.89519,63520.0,63519.0,0.64541407]
[1719803771169,1.88619,63520.0,63519.0,0.64441407]
[1719803771390,1.88619,63520.0,63519.0,0.62441407]
[1719803771391,1.72876,63520.0,63519.0,0.62441407]
[1719803771613,1.73576,63520.0,63519.0,0.62541407]
[1719803772056,1.73576,63520.0,63519.0,0.62441407]
[1719803772057,1.72876,63520.0,63519.0,0.62441407]
[1719803772286,1.73576,63520.0,63519.0,0.62541407]
[1719803772924,1.73176,63520.0,63519.0,0.62541407]
[1719803773502,1.72876,63520.0,63519.0,0.62441407]
[1719803773886,1.73276,63520.0,63519.0,0.62441407]
[1719803774937,1.73976,63520.0,63519.0,0.62541407]
[1719803775491,1.73276,63520.0,63519.0,0.62441407]
[1719803775685,1.73976,63520.0,63519.0,0.62541407]
[1719803776130,1.73276,63520.0,63519.0,0.62441407]
[1719803776349,1.72476,63520.0,63519.0,0.62441407]
[1719803776457,1.73576,63520.0,63519.0,0.62541407]
[1719803777320,1.73976,63520.0,63519.0,0.64541407]
[1719803777714,1.73176,63520.0,63519.0,0.64541407]
[1719803777871,1.72476,63520.0,63519.0,0.64441407]
[1719803778276,1.73176,63520.0,63519.0,0.64541407]
[1719803778479,1.73576,63520.0,63519.0,0.64541407]
[1719803778675,1.72876,63520.0,63519.0,0.64441407]
[1719803778995,1.73576,63520.0,63519.0,0.62541407]
[1719803779535,1.72876,63520.0,63519.0,0.62441407]
[1719803780079,2.966673,63520.0,63519.0,0.473224]
[1719803780309,2.966673,63520.0,63519.0,0.46092068]
[1719803780310,3.059873,63520.0,63519.0,0.46092068]
[1719803780527,3.09377903,63520.0,63519.0,0.45124334]
[1719803780709,3.09377903,63520.0,63519.0,0.44924334]
[1719803781685,3.09877903,63520.0,63519.0,0.45024334]
[1719803782105,3.00457903,63520.0,63519.0,0.45024334]
[1719803782302,3.09777903,63520.0,63519.0,0.45024334]
[1719803782497,3.09077903,63520.0,63519.0,0.45124334]
[1719803782925,3.11077903,63520.0,63519.0,0.45124334]
[1719803783205,3.27311801,63520.0,63519.0,0.45124334]
[1719803783803,3.19991801,63520.0,63519.0,0.45124334]
[1719803784193,3.27311801,63520.0,63519.0,0.45124334]
[1719803784359,3.25311801,63520.0,63519.0,0.45124334]
[1719803784517,3.27311801,63520.0,63519.0,0.45124334]
[1719803785759,4.0912931,63520.0,63519.0,0.21064334]
[1719803785873,5.05944501,63520.0,63519.0,0.15565399]
[1719803786083,5.30825494,63520.0,63519.0,0.002]
[1719803786921,5.30425494,63520.0,63519.0,0.001]
[1719803787132,5.10425494,63520.0,63519.0,0.001]
[1719803787330,5.30825494,63520.0,63519.0,0.002]
[1719803787538,5.30425494,63520.0,63519.0,0.001]
[1719803787755,5.48592208,63520.0,63519.0,0.002]
[1719803787955,5.48992208,63520.0,63519.0,0.002]
[1719803788208,1.102307,63503.0,63502.0,0.4716]
[1719803788490,0.157482,63499.0,63498.0,0.15119007]
[1719803788717,0.787425,63498.0,63497.0,0.15119007]
[1719803788947,0.472462,63497.0,63496.0,0.15119007]
[1719803789171,0.787437,63497.0,63496.0,0.15119007]
[1719803790292,0.787437,63497.0,63487.0,0.157511]
[1719803790293,0.157497,63493.0,63492.0,0.15119007]
[1719803790527,0.572492,63493.0,63492.0,0.15119007]
[1719803790764,0.7875,63492.0,63491.0,0.15119007]
[1719803790964,1.2025,63492.0,63491.0,0.15119007]
[1719803791237,0.472507,63491.0,63490.0,0.15119007]
[1719803791466,0.572507,63491.0,63490.0,0.15119007]
[1719803791743,0.887512,63491.0,63490.0,0.15119007]
[1719803793346,0.889512,63491.0,63490.0,0.15119007]
[1719803793938,0.787525,63490.0,63489.0,0.15119007]
[1719803794789,0.787537,63489.0,63488.0,0.15119007]
[1719803795750,0.40393898,63489.0,63482.0,0.16045207]
[1719803796013,0.472566,63483.0,63482.0,0.16045207]
[1719803796202,1.102654,63483.0,63482.0,0.16045207]
[1719803796372,0.88761,63483.0,63482.0,0.16045207]
[1719803796576,0.257522,63483.0,63482.0,0.30165207]
[1719803797524,0.257522,63483.0,63482.0,0.30265207]
[1719803797525,0.271522,63483.0,63482.0,0.30265207]
[1719803797902,0.257522,63483.0,63482.0,0.30165207]
[1719803798128,0.581566,63483.0,63482.0,0.30265207]
[1719803798519,0.581566,63483.0,63482.0,0.16145207]
[1719803798709,0.89661,63483.0,63482.0,0.16145207]
[1719803799113,0.88761,63483.0,63482.0,0.16045207]
[1719803799315,1.50449298,63483.0,63482.0,0.009262]
[1719803799723,1.51849298,63483.0,63482.0,0.009262]
[1719803799931,1.52849298,63483.0,63482.0,0.009262]
[1719803800130,1.72179298,63483.0,63482.0,0.009262]
[1719803800329,2.09750698,63483.0,63482.0,0.010262]
[1719803800711,2.12650698,63483.0,63482.0,0.009262]
[1719803800884,2.11750698,63483.0,63482.0,0.009262]
[1719803801126,2.14650698,63483.0,63482.0,0.0102191]
[1719803801331,2.10650698,63483.0,63482.0,0.0092191]
[1719803801721,2.11650698,63483.0,63482.0,0.0102191]
[1719803802662,2.12850698,63483.0,63482.0,0.0102191]
[1719803805915,2.1555991,63483.0,63482.0,0.0102191]
[1719803807301,2.1755991,63483.0,63482.0,0.0102191]
[1719803809390,1.669113,63481.0,63480.0,0.000924]
[1719803809602,1.83145198,63481.0,63480.0,0.000924]
[1719803809816,1.93145198,63481.0,63480.0,0.000924]
[1719803810681,1.94145198,63481.0,63480.0,0.000924]
[1719803810918,1.94945198,63481.0,63480.0,0.001924]
[1719803811900,1.92945198,63481.0,63480.0,0.001924]
[1719803812155,1.94945198,63481.0,63480.0,0.001924]
[1719803812745,1.92945198,63481.0,63480.0,0.001924]
[1719803813661,1.92675029,63481.0,63480.0,0.001924]
[1719803814274,1.94675029,63481.0,63480.0,0.001924]
[1719803815782,1.92675029,63481.0,63480.0,0.001924]
[1719803816617,1.47499629,63481.0,63480.0,0.001924]
[1719803817797,0.90293331,63481.0,63480.0,0.001924]
[1719803819789,0.90293331,63481.0,63480.0,0.142724]
[1719803820364,0.27282531,63481.0,63480.0,0.142724]
[1719803820534,0.58787931,63481.0,63480.0,0.142724]
[1719803825874,0.118,63481.0,63480.0,0.142724]
[1719803826049,0.018,63481.0,63480.0,0.142724]
[1719803826301,0.118,63481.0,63480.0,0.142724]
[1719803826476,0.11884,63481.0,63480.0,0.142724]
[1719803827254,0.591421,63481.0,63480.0,0.001924]
[1719803827610,0.62539939,63481.0,63480.0,0.001924]
[1719803828477,0.591421,63481.0,63480.0,0.001924]
[1719803828856,0.62540568,63481.0,63480.0,0.001924]
[1719803829735,0.94045968,63481.0,63480.0,0.001924]
[1719803832757,0.62540568,63481.0,63480.0,0.001924]
[1719803833845,0.05282468,63481.0,63480.0,0.47684307]
[1719803834068,0.01884,63481.0,63480.0,1.10696107]
[1719803834277,0.01884,63481.0,63480.0,1.23786861]
[1719803834691,0.01084,63481.0,63480.0,1.39920759]
[1719803835090,0.01884,63481.0,63480.0,1.40020759]
[1719803835298,0.01884,63481.0,63480.0,1.39920759]
[1719803835501,0.01884,63481.0,63480.0,1.26830005]
[1719803835713,0.00884,63481.0,63480.0,1.26830005]
[1719803836135,0.01884,63481.0,63480.0,1.26830005]
[1719803836343,0.01984,63481.0,63480.0,1.27530005]
[1719803836515,0.01984,63481.0,63480.0,1.47530005]
[1719803836516,0.00984,63481.0,63480.0,1.47530005]
[1719803836907,0.00984,63481.0,63480.0,1.47730005]
[1719803839425,0.00984,63481.0,63480.0,1.99235905]
[1719803840045,0.00978385,63481.0,63480.0,1.99235905]
[1719803840343,0.00978385,63481.0,63480.0,1.79235905]
[1719803841534,0.00978385,63481.0,63480.0,1.16224105]
[1719803845113,0.00978385,63481.0,63480.0,0.82718205]
[1719803845319,0.00978385,63481.0,63480.0,0.84718205]
[1719803845519,0.00978385,63481.0,63480.0,1.16224105]
[1719803846924,0.00978385,63481.0,63480.0,1.36224105]
[1719803847123,0.00978385,63481.0,63480.0,1.16224105]
[1719803847309,0.00978385,63481.0,63480.0,1.47730005]
[1719803847522,0.00978385,63481.0,63480.0,1.67730005]
[1719803847733,0.00978385,63481.0,63480.0,2.17565905]
[1719803849428,0.00978385,63481.0,63480.0,2.64824905]
[1719803851458,0.00978385,63481.0,63480.0,2.46494905]
[1719803852350,0.00978385,63481.0,63480.0,2.26494905]
[1719803852568,0.00978385,63481.0,63480.0,1.31977205]
[1719803853199,0.00978385,63481.0,63480.0,1.63483105]
[1719803854549,0.00978385,63481.0,63480.0,1.01123307]
[1719803855114,0.00978385,63481.0,63480.0,0.85370407]
[1719803855351,0.00978385,63481.0,63480.0,1.01123307]
[1719803863953,0.00978385,63481.0,63480.0,1.08453307]
[1719803867094,0.00978385,63481.0,63480.0,1.39959207]
[1719803871499,0.00978385,63481.0,63480.0,1.32629207]
[1719803878094,0.00978385,63481.0,63480.0,1.01123307]
[1719803879881,0.00978385,63481.0,63480.0,1.08453307]
[1719803880994,0.00978385,63481.0,63480.0,1.83363381]
[1719803881219,0.00978385,63481.0,63480.0,1.70273105]
[1719803881838,0.00978385,63481.0,63480.0,1.70073105]
[1719803882178,0.00978385,63481.0,63480.0,1.70273105]
[1719803882840,0.00078385,63481.0,63480.0,1.63043105]
[1719803883030,0.00078385,63481.0,63480.0,1.55893105]
[1719803886743,0.00078385,63481.0,63480.0,1.48563105]
[1719803887167,0.00078385,63481.0,63480.0,1.61653081]
[1719803887947,0.00078385,63481.0,63480.0,1.61453081]
[1719803888356,0.00078385,63481.0,63480.0,1.61653081]
[1719803888560,0.00078385,63481.0,63480.0,1.48563105]
[1719803888759,0.00078385,63481.0,63480.0,1.48363105]
[1719803889321,0.00078385,63481.0,63480.0,1.61653076]
[1719803889536,0.00078385,63481.0,63480.0,1.93158976]
[1719803889762,0.00078385,63481.0,63480.0,2.07498976]
[1719803889998,0.00078385,63481.0,63480.0,2.58604862]
[1719803890203,0.00178385,63481.0,63480.0,2.59204862]
[1719803890430,0.00178385,63481.0,63480.0,2.58603912]
[1719803890627,0.00178385,63481.0,63480.0,2.58403912]
[1719803890852,0.00178385,63481.0,63480.0,2.66199872]
[1719803890853,0.00278385,63481.0,63480.0,2.66199872]
[1719803891052,0.00278385,63481.0,63480.0,2.68065192]
[1719803891053,0.00178385,63481.0,63480.0,2.68065192]
[1719803891252,0.00178385,63481.0,63480.0,2.58603912]
[1719803891427,0.00278385,63481.0,63480.0,2.68660425]
[1719803891708,0.00278385,63481.0,63480.0,2.58603912]
[1719803891868,0.00278385,63481.0,63480.0,2.65696515]
[1719803892504,0.00278385,63481.0,63480.0,2.58603912]
[1719803892890,0.00278385,63481.0,63480.0,2.45514905]
[1719803893069,0.00378385,63481.0,63480.0,2.59802977]
[1719803893495,0.00378385,63481.0,63480.0,2.66894441]
[1719803893651,0.00378385,63481.0,63480.0,2.59802977]
[1719803895379,0.00378385,63481.0,63480.0,2.64528849]
[1719803895981,0.00378385,63481.0,63480.0,2.51440812]
[1719803896186,0.00378385,63481.0,63480.0,2.6452891]
[1719803897306,0.00378385,63481.0,63480.0,2.46714905]
[1719803897527,0.00378385,63481.0,63480.0,2.59802931]
[1719803898692,0.00378385,63481.0,63480.0,2.64528382]
[1719803898891,0.00378385,63481.0,63480.0,2.51440356]
[1719803899101,0.00378385,63481.0,63480.0,3.02946256]
[1719803899342,0.00378385,63481.0,63480.0,3.33608427]
[1719803899544,0.00378385,63481.0,63480.0,3.83608427]
[1719803900497,0.00378385,63481.0,63480.0,3.52102527]
[1719803901049,0.00378385,63481.0,63480.0,3.59432527]
[1719803901251,0.00378385,63481.0,63480.0,3.59433211]
[1719803902768,0.00378385,63481.0,63480.0,3.09433211]
[1719803905285,0.00378385,63481.0,63480.0,3.02103229]
[1719803905531,0.00378385,63481.0,63480.0,3.09433185]
[1719803906372,0.00378385,63481.0,63480.0,3.02103185]
[1719803906576,0.00378385,63481.0,63480.0,3.09433185]
[1719803908191,0.00378385,63481.0,63480.0,3.09433201]
[1719803908640,0.00378385,63481.0,63480.0,2.96344905]
[1719803908839,0.00378385,63481.0,63480.0,3.09433239]
[1719803911958,0.00378385,63481.0,63480.0,2.96344905]
[1719803912192,0.00378385,63481.0,63480.0,3.0943316]
[1719803915076,0.00378385,63481.0,63480.0,2.96344905]
[1719803915284,0.00378385,63481.0,63480.0,3.0943313]
[1719803915532,0.00378385,63481.0,63480.0,2.96344905]
[1719803915733,0.00378385,63481.0,63480.0,3.09433161]
[1719803915939,0.00378385,63481.0,63480.0,2.89433161]
[1719803916094,0.00378385,63481.0,63480.0,3.09433161]
[1719803918248,0.00378385,63481.0,63480.0,3.09432977]
[1719803919870,0.00378385,63481.0,63480.0,3.02102977]
[1719803920066,0.00378385,63481.0,63480.0,3.09432977]
[1719803921450,0.00378385,63481.0,63480.0,3.09433383]
[1719803921917,0.00378385,63481.0,63480.0,2.69433383]
[1719803922127,0.00378385,63481.0,63480.0,2.39803383]
[1719803922329,0.00378385,63481.0,63480.0,2.47133383]
[1719803923106,0.00378385,63481.0,63480.0,2.39803383]
[1719803923340,0.00378385,63481.0,63480.0,2.47133383]
[1719803923544,0.00378385,63481.0,63480.0,1.29532783]
[1719803923751,0.00378385,63481.0,63480.0,1.52615683]
[1719803924387,0.00378385,63481.0,63480.0,1.44687085]
[1719803924602,0.00378385,63481.0,63480.0,1.44687068]
[1719803924809,0.00378385,63481.0,63480.0,1.31597205]
[1719803925014,0.00378385,63481.0,63480.0,1.3827706]
[1719803925343,0.00378385,63481.0,63480.0,1.25187205]
[1719803925548,0.00378385,63481.0,63480.0,1.56693105]
[1719803925953,0.00378385,63481.0,63480.0,1.76693105]
[1719803926153,0.00378385,63481.0,63480.0,2.52794801]
[1719803927606,0.00378385,63481.0,63480.0,2.52793388]
[1719803928445,0.00378385,63481.0,63480.0,2.72793388]
[1719803928653,0.00378385,63481.0,63480.0,2.75093388]
[1719803928860,0.00378385,63481.0,63480.0,2.79818748]
[1719803929063,0.00378385,63481.0,63480.0,2.75093388]
[1719803929847,0.00378385,63481.0,63480.0,2.8218121]
[1719803930349,0.00378385,63481.0,63480.0,3.3368711]
[1719803930571,0.00378385,63481.0,63480.0,3.36049717]
[1719803930754,0.00378385,63481.0,63480.0,3.36048557]
[1719803933944,0.00378385,63481.0,63480.0,3.26598223]
[1719803934119,0.00378385,63481.0,63480.0,3.36052247]
[1719803934532,0.00378385,63481.0,63480.0,3.34868223]
[1719803935283,0.00378385,63481.0,63480.0,3.26598223]
[1719803936511,0.00378385,63481.0,63480.0,3.38415753]
[1719803937024,0.00378385,63481.0,63480.0,3.38418393]
[1719803937226,0.00378385,63481.0,63480.0,3.26598138]
[1719803937804,0.00378385,63481.0,63480.0,3.38418393]
[1719803938365,0.00378385,63481.0,63480.0,3.26598138]
[1719803938872,0.00378385,63481.0,63480.0,3.38418393]
[1719803939069,0.00378385,63481.0,63480.0,3.26598138]
[1719803940158,0.00378385,63481.0,63480.0,3.13510805]
[1719803940360,0.00378385,63481.0,63480.0,3.38417629]
[1719803940678,0.00378385,63481.0,63480.0,3.38417364]
[1719803941066,0.00378385,63481.0,63480.0,3.26598054]
[1719803942639,0.00378385,63481.0,63480.0,3.26598147]
[1719803944512,0.00378385,63481.0,63480.0,3.29098058]
[1719803945708,0.00378385,63481.0,63480.0,3.29098054]
[1719803946995,0.00378385,63481.0,63480.0,3.40916922]
[1719803948054,0.00378385,63481.0,63480.0,3.29098054]
[1719803948929,0.00378385,63481.0,63480.0,3.16010716]
[1719803949139,0.00378385,63481.0,63480.0,3.29098015]
[1719803949746,0.00378385,63481.0,63480.0,3.21768015]
[1719803949952,0.00378385,63481.0,63480.0,3.29098015]
[1719803950351,0.00378385,63481.0,63480.0,3.38552837]
[1719803950560,0.00378385,63481.0,63480.0,3.38552718]
[1719803951567,0.00378385,63481.0,63480.0,3.29098015]
[1719803951768,0.00378385,63481.0,63480.0,4.15269518]
[1719803952199,0.1498,63499.0,63498.0,1.35861507]
[1719803952440,0.1498,63499.0,63498.0,2.5125373]
[1719803952639,0.1498,63499.0,63498.0,2.51253386]
[1719803953173,0.1498,63499.0,63498.0,2.57559486]
[1719803953373,0.1498,63499.0,63498.0,2.37559486]
[1719803953577,0.1498,63499.0,63498.0,2.57559486]
[1719803953789,0.1508,63499.0,63498.0,2.37859486]
[1719803954218,0.1508,63499.0,63498.0,2.39259486]
[1719803955208,0.1508,63499.0,63498.0,2.26174505]
[1719803955491,0.1508,63499.0,63498.0,2.39259618]
[1719803958233,0.1508,63499.0,63498.0,2.26174505]
[1719803960585,0.001,63499.0,63498.0,2.46174505]
[1719803960809,0.001,63499.0,63498.0,2.68474505]
[1719803961418,0.001,63499.0,63498.0,2.81559428]
[1719803963152,0.001,63499.0,63498.0,3.13056428]
[1719803965932,0.001,63499.0,63498.0,2.92641505]
[1719803966148,0.001,63499.0,63498.0,2.99971505]
[1719803966765,0.001,63499.0,63498.0,3.04691838]
[1719803966988,0.001,63499.0,63498.0,2.92641505]
[1719803967260,0.001,63499.0,63498.0,2.99971505]
[1719803972359,0.001,63499.0,63498.0,3.13055421]
[1719803973225,0.001,63499.0,63498.0,3.13055346]
[1719803973450,0.001,63499.0,63498.0,2.99971505]
[1719803973695,0.001,63499.0,63498.0,3.13055335]
[1719803976719,0.001,63499.0,63498.0,3.1305518]
[1719803976928,0.001,63499.0,63498.0,3.6455218]
[1719803977138,0.001,63499.0,63498.0,3.7905218]
[1719803977304,0.001,63499.0,63498.0,3.83763246]
[1719803977510,0.001,63499.0,63498.0,3.8905218]
[1719803977779,0.19136,63514.0,63513.0,1.67332607]
[1719803977780,0.11326,63514.0,63513.0,1.67332607]
[1719803977946,0.11326,63514.0,63513.0,2.5121418]
[1719803978359,0.04846,63514.0,63513.0,2.5121418]
[1719803978543,0.04846,63514.0,63513.0,2.5751858]
[1719803979487,0.04846,63514.0,63513.0,2.5891858]
[1719803979734,0.04846,63514.0,63513.0,2.60016607]
[1719803983003,0.04846,63514.0,63513.0,2.60016574]
[1719803983289,0.04846,63514.0,63513.0,2.46934905]
[1719803983530,0.04846,63514.0,63513.0,2.60016573]
[1719803985373,0.12486,63514.0,63513.0,2.60016573]
[1719803985754,0.12486,63514.0,63513.0,2.40016573]
[1719803985913,0.12486,63514.0,63513.0,2.26934905]
[1719803986129,0.19086,63514.0,63513.0,1.63955705]
[1719803986335,0.19086,63514.0,63513.0,0.71157407]
[1719803986939,0.19086,63514.0,63513.0,0.64853007]
[1719803987362,0.348305,63514.0,63513.0,0.64853007]
[1719803987574,0.19086,63514.0,63513.0,0.64853007]
[1719803987798,0.19086,63514.0,63513.0,0.63753007]
[1719803988000,0.19086,63514.0,63513.0,0.62353007]
[1719803988202,0.19086,63514.0,63513.0,0.63853007]
[1719803988799,0.19086,63514.0,63513.0,0.62753007]
[1719803989002,0.19086,63514.0,63513.0,0.62853007]
[1719803990608,0.19086,63514.0,63513.0,0.47734]
[1719803990609,0.978087,63514.0,63513.0,0.47734]
[1719803990815,1.466278,63514.0,63513.0,0.47734]
[1719803991221,1.50687741,63514.0,63513.0,0.47734]
[1719803991869,1.50687741,63514.0,63513.0,0.47634]
[1719803992076,1.50687741,63514.0,63513.0,0.47334]
[1719803993105,1.52687741,63514.0,63513.0,0.47334]
[1719803993236,1.50687741,63514.0,63513.0,0.47334]
[1719803995261,1.50687741,63514.0,63513.0,0.62453007]
[1719803995467,1.5068781,63514.0,63513.0,0.62453007]
[1719803995680,1.4335781,63514.0,63513.0,0.62453007]
[1719803995881,1.50687799,63514.0,63513.0,0.62453007]
[1719803996768,1.19198699,63514.0,63513.0,0.62453007]
[1719803996967,1.11214355,63514.0,63513.0,0.62453007]
[1719803997168,1.078087,63514.0,63513.0,0.62453007]
[1719804000256,0.448305,63514.0,63513.0,0.62453007]
[1719804000843,0.29086,63514.0,63513.0,0.62453007]
[1719804002113,0.29086,63514.0,63513.0,0.64453007]
[1719804002312,0.14846,63514.0,63513.0,0.64453007]
[1719804002544,0.14846,63514.0,63513.0,0.64353007]
[1719804002766,0.04757392,63514.0,63513.0,1.11587407]
[1719804002951,0.04757392,63514.0,63513.0,1.11687407]
[1719804003322,0.04757392,63514.0,63513.0,1.59410905]
[1719804004697,0.04757392,63514.0,63513.0,1.57410905]
[1719804004881,0.04757392,63514.0,63513.0,1.57310905]
[1719804005209,0.04757392,63514.0,63513.0,1.59310905]
[1719804005210,0.10767392,63514.0,63513.0,1.59310905]
[1719804005563,0.04757392,63514.0,63513.0,1.59410905]
[1719804007721,0.04757392,63514.0,63513.0,1.27921305]
[1719804008154,0.04757392,63514.0,63513.0,1.73290905]
[1719804008536,0.04757392,63514.0,63513.0,2.24780505]
[1719804008738,0.04757392,63514.0,63513.0,2.27080505]
[1719804009540,0.04757392,63514.0,63513.0,2.07080505]
[1719804009782,0.04757392,63514.0,63513.0,1.27921305]
[1719804010033,0.04757392,63514.0,63513.0,1.25921305]
[1719804010275,0.04757392,63514.0,63513.0,1.27821305]
[1719804010784,0.04757392,63514.0,63513.0,0.78786905]
[1719804010989,0.04757392,63514.0,63513.0,0.78586905]
[1719804011253,0.04757392,63514.0,63513.0,0.79586905]
[1719804011460,0.04757392,63514.0,63513.0,0.78686905]
[1719804011884,0.04757392,63514.0,63513.0,0.78586905]
[1719804012097,0.04757392,63514.0,63513.0,0.79586905]
[1719804012299,0.04757392,63514.0,63513.0,0.80286905]
[1719804012677,0.04757392,63514.0,63513.0,0.96031705]
[1719804012929,0.04757392,63514.0,63513.0,1.29521305]
[1719804013899,0.04757392,63514.0,63513.0,1.27521305]
[1719804015259,0.04757392,63514.0,63513.0,1.29521305]
[1719804018064,0.04841392,63514.0,63513.0,1.29521305]
[1719804022476,0.04841392,63514.0,63513.0,2.26790505]
[1719804023423,0.04841392,63514.0,63513.0,2.06090505]
[1719804023622,0.04841392,63514.0,63513.0,2.06790505]
[1719804023938,0.04841392,63514.0,63513.0,2.05790505]
[1719804024300,0.04841392,63514.0,63513.0,1.60310905]
[1719804024451,0.04841392,63514.0,63513.0,1.61010905]
[1719804025115,0.04841392,63514.0,63513.0,1.60010905]
[1719804025735,0.04841392,63514.0,63513.0,1.59310905]
[1719804026623,0.04841392,63514.0,63513.0,1.60310905]
[1719804027046,0.04841392,63514.0,63513.0,1.61010905]
[1719804027466,0.04841392,63514.0,63513.0,1.59310905]
[1719804027866,0.04841392,63514.0,63513.0,1.61010905]
[1719804029328,0.04841392,63514.0,63513.0,1.74093215]
[1719804029534,0.04841392,63514.0,63513.0,1.74093198]
[1719804031183,0.04841392,63514.0,63513.0,1.94093198]
[1719804031873,0.04841392,63514.0,63513.0,2.51922798]
[1719804032096,0.04841392,63514.0,63513.0,2.58192798]
[1719804032611,0.04841392,63514.0,63513.0,2.58192387]
[1719804032935,0.04841392,63514.0,63513.0,2.47410505]
[1719804033171,0.04841392,63514.0,63513.0,2.60492178]
[1719804033750,0.04841392,63514.0,63513.0,2.59792178]
[1719804033899,0.04841392,63514.0,63513.0,2.60492178]
[1719804034063,0.04841392,63514.0,63513.0,2.80492178]
[1719804034273,0.04841392,63514.0,63513.0,3.10981778]
[1719804034477,0.04841392,63514.0,63513.0,3.10281778]
[1719804034690,0.04841392,63514.0,63513.0,3.11981778]
[1719804034908,0.04841392,63514.0,63513.0,3.10981778]
[1719804035319,0.04841392,63514.0,63513.0,3.11581778]
[1719804035536,0.04841392,63514.0,63513.0,3.11681778]
[1719804035710,0.04841392,63514.0,63513.0,3.13080655]
[1719804037664,0.04841392,63514.0,63513.0,3.11680655]
[1719804037866,0.04841392,63514.0,63513.0,3.13080655]
[1719804038777,0.04841392,63514.0,63513.0,2.43271055]
[1719804038987,0.04841392,63514.0,63513.0,2.23271187]
[1719804040298,0.04841392,63514.0,63513.0,2.43271187]
[1719804040699,0.04841392,63514.0,63513.0,2.40471187]
[1719804041118,0.04841392,63514.0,63513.0,2.41871187]
[1719804041539,0.04841392,63514.0,63513.0,2.21871187]
[1719804042164,0.04841392,63514.0,63513.0,2.23271187]
[1719804042593,0.04841392,63514.0,63513.0,2.17001187]
[1719804042822,0.04841392,63514.0,63513.0,1.75191587]
[1719804043055,0.04841392,63514.0,63513.0,1.43701987]
[1719804045084,0.04841392,63514.0,63513.0,1.30621305]
[1719804045259,0.04841392,63514.0,63513.0,1.4370329]
[1719804045464,0.04841392,63514.0,63513.0,1.30621305]
[1719804045675,0.04841392,63514.0,63513.0,1.4370329]
[1719804049840,0.04841392,63514.0,63513.0,1.5102329]
[1719804050878,0.04841392,63514.0,63513.0,1.5111569]
[1719804051275,0.04841392,63514.0,63513.0,1.38033705]
[1719804051482,0.04841392,63514.0,63513.0,1.51115692]
[1719804052485,0.04841392,63514.0,63513.0,2.02605292]
[1719804052687,0.04841392,63514.0,63513.0,2.16845292]
[1719804054599,0.04841392,63514.0,63513.0,2.03763305]
[1719804054806,0.04841392,63514.0,63513.0,2.16845247]
[1719804055630,0.04841392,63514.0,63513.0,1.90215247]
[1719804055943,0.04841392,63514.0,63513.0,1.82605247]
[1719804056686,0.04841392,63514.0,63513.0,1.51115647]
[1719804057585,0.11471392,63514.0,63513.0,0.96561247]
[1719804057844,0.11471392,63514.0,63513.0,1.03881742]
[1719804058277,0.11471392,63514.0,63513.0,0.8564806]
[1719804058450,0.19301392,63514.0,63513.0,0.65245407]
[1719804065521,0.82279592,63514.0,63513.0,0.65245407]
[1719804065718,0.98024092,63514.0,63513.0,0.65245407]
[1719804066464,0.98024092,63514.0,63513.0,0.63845407]
[1719804066668,0.98024092,63514.0,63513.0,0.64845407]
[1719804067126,0.98024092,63514.0,63513.0,0.63445407]
[1719804067356,0.04841392,63514.0,63513.0,0.63445407]
[1719804067583,0.04841392,63514.0,63513.0,0.64145407]
[1719804069280,0.34625892,63514.0,63513.0,0.64145407]
[1719804069754,0.97604092,63514.0,63513.0,0.64145407]
[1719804070697,1.46413192,63514.0,63513.0,0.490264]
[1719804070934,1.49818971,63514.0,63513.0,0.490264]
[1719804071166,1.50473263,63514.0,63513.0,0.490264]
[1719804071402,1.50473263,63514.0,63513.0,0.483264]
[1719804071588,1.49818971,63514.0,63513.0,0.483264]
[1719804071869,1.49818971,63514.0,63513.0,0.474264]
[1719804072381,1.50018971,63514.0,63513.0,0.475264]
[1719804073033,1.50018971,63514.0,63513.0,0.474264]
[1719804073495,1.52018971,63514.0,63513.0,0.475264]
[1719804073729,1.52673294,63514.0,63513.0,0.475264]
[1719804074175,1.52673271,63514.0,63513.0,0.475264]
[1719804074417,0.19101471,63514.0,63513.0,0.475264]
[1719804074657,0.15041392,63514.0,63513.0,0.63645407]
[1719804074887,0.05041392,63514.0,63513.0,0.62645407]
[1719804075115,0.15041392,63514.0,63513.0,0.62645407]
[1719804075446,0.15041392,63514.0,63513.0,0.62545407]
[1719804075447,0.14841392,63514.0,63513.0,0.62545407]
[1719804075648,0.14941392,63514.0,63513.0,0.64545407]
[1719804076065,0.14941392,63514.0,63513.0,0.62445407]
[1719804076268,0.04941392,63514.0,63513.0,0.62545407]
[1719804076814,0.04941392,63514.0,63513.0,0.62445407]
[1719804077171,0.04941392,63514.0,63513.0,0.62845407]
[1719804077711,0.04841392,63514.0,63513.0,0.64845407]
[1719804078943,0.04841392,63514.0,63513.0,0.65445407]
[1719804079274,0.04841392,63514.0,63513.0,0.64845407]
[1719804079483,0.04941392,63514.0,63513.0,0.64845407]
[1719804079755,0.04941392,63514.0,63513.0,0.64445407]
[1719804079934,0.04841392,63514.0,63513.0,0.64445407]
[1719804080084,0.04941392,63514.0,63513.0,0.64445407]
[1719804081134,0.04941392,63514.0,63513.0,0.62445407]
[1719804082320,0.04941392,63514.0,63513.0,0.64445407]
[1719804082520,0.04941392,63514.0,63513.0,0.80190207]
[1719804082724,0.04941392,63514.0,63513.0,1.43169407]
[1719804083014,0.04941392,63514.0,63513.0,1.59403305]
[1719804083245,0.04941392,63514.0,63513.0,2.05482905]
[1719804083920,0.04841392,63514.0,63513.0,2.05482905]
[1719804084320,0.04841392,63514.0,63513.0,2.05882905]
[1719804085732,0.04841392,63514.0,63513.0,2.05482905]
[1719804086350,0.04841392,63514.0,63513.0,2.05982905]
[1719804086595,0.04841392,63514.0,63513.0,2.06182905]
[1719804087027,0.04841392,63514.0,63513.0,2.05982905]
[1719804087380,0.04841392,63514.0,63513.0,2.06382905]
[1719804087615,0.04841392,63514.0,63513.0,2.05882905]
[1719804088681,0.04841392,63514.0,63513.0,2.05482905]
[1719804089412,0.04841392,63514.0,63513.0,2.06282905]
[1719804089614,0.04841392,63514.0,63513.0,2.05482905]
[1719804089895,0.04841392,63514.0,63513.0,2.06782905]
[1719804090295,0.04841392,63514.0,63513.0,2.05982905]
[1719804090590,0.04841392,63514.0,63513.0,2.06282905]
[1719804090817,0.04841392,63514.0,63513.0,2.06782905]
[1719804091229,0.04841392,63514.0,63513.0,2.07082905]
[1719804091544,0.04841392,63514.0,63513.0,2.07582905]